Cogmind - Beta 17 @@@ ROGUE MODE // 2026.07.04 @ 22:56:55 Player: DreamCore Result: Destroyed by J5-7G1(R) with Subdweller Laser Performance ------------- Evolutions (0) 0 Regions Visited (2) 400 Robots Destroyed (6) 30 Value Destroyed (116) 116 Prototype IDs (0) 0 Alien Tech Used (0) 0 Bonus (0) 0 TOTAL SCORE: 546 Bonus ------- None Cogmind --------- Core Integrity 0/250 Matter 215/300 Energy 250/250 System Corruption 0% Temperature Cool (6) Movement Core (800) Ox15 Location -10/Subcaves Parts ------- > --- POWER (1) -------- Ion Engine > --- PROPULSION (2) --- (None) > --- UTILITY (2) ------ Improved Heat Sink High-capacity Storage Unit > --- WEAPON (2) ------- (None) > --- INVENTORY (20) --- Subdweller Power Source Light Treads Aluminum Leg Aluminum Leg Aluminum Leg Aluminum Leg Aluminum Leg Subdweller Monowheel Improved Heat Sink High-capacity Matter Pod (200) Structural Scanner Visual Processing Unit Subdweller Optics Seismic Detector Power Shielding Peak State ------------ > --- POWER ------------ Ion Engine > --- PROPULSION ------- Light Treads Compact Wheel > --- UTILITY ---------- Improved Heat Sink High-capacity Storage Unit > --- WEAPON ----------- Particle Gun Light Assault Rifle > --- INVENTORY -------- Subdweller Power Source Light Treads Aluminum Leg Aluminum Leg Aluminum Leg Aluminum Leg Aluminum Leg Subdweller Monowheel Improved Heat Sink High-capacity Matter Pod Structural Scanner Visual Processing Unit Subdweller Optics Seismic Detector Power Shielding [Rating: 12] Favorites ----------- Power Light Ion Engine Engine Light Ion Engine Propulsion Light Treads Treads Light Treads Leg Aluminum Leg Wheel Compact Wheel Utility Heat Sink Device Heat Sink Storage High-capacity Storage Unit Weapon Medium Laser Energy Gun Medium Laser Ballistic Gun Light Assault Rifle Ballistic Cannon Light Cannon Build | -11 -10 -10 ------- Run | Yrd Mat Sub Slots Evolved . | . . . Power . | . . . Propulsion . | . . . Utility . | . . . Weapon . | . . . Parts Attached 12 | . 5 7 Power 1 | . . 1 Engine 1 | . . 1 Core . | . . . Reactor . | . . . Propulsion 3 | . 2 1 Treads 2 | . 1 1 Leg . | . . . Wheel 1 | . 1 . Hover . | . . . Flight . | . . . Utility 4 | . 3 1 Device 2 | . 1 1 Storage 2 | . 2 . Processor . | . . . Hackware . | . . . Protection . | . . . Artifact . | . . . Weapon 4 | . . 4 Energy Gun 2 | . . 2 Energy Cannon . | . . . Ballistic Gun 1 | . . 1 Ballistic Cannon 1 | . . 1 Launcher . | . . . Special Weapon . | . . . Impact Weapon . | . . . Slashing Weapon . | . . . Piercing Weapon . | . . . Special Melee Weapon . | . . . Unidentified Prototypes . | . . . Parts Lost 9 | . . 9 Power 1 | . . 1 Propulsion 3 | . . 3 Utility . | . . . Weapon 5 | . . 5 Highest Loss Streak 5 | . . 5 To Critical Strikes . | . . . Average Backups 14 | . 11 18 Power 1 | . 1 1 Propulsion 5 | . 4 7 Utility 5 | . 3 7 Weapon 2 | . 2 2 Tool/Special . | . . . Unused Backups 28 | . 6 22 Power 3 | . 1 2 Propulsion 10 | . 1 9 Utility 12 | . 2 10 Weapon 3 | . 2 1 Tool/Special . | . . . Average Slot Usage (%) 98 | . 98 98 Engine 14 | . 14 14 Treads 11 | . 10 13 Leg 4 | . 6 . Wheel 11 | . 10 13 Device 13 | . 13 14 Storage 14 | . 14 14 Energy Gun 25 | . 28 21 Ballistic Gun 1 | . . 3 Peak Build Rating 12 | . 9 12 Average Rating 8 | . 7 10 On Entrance 7 | 6 6 9 Avg Prop Armor Cover (%) 12 | . 12 12 Naked Turns . | . . . Heaviest Build 50 | 12 48 50 Greatest Support 20 | 20 20 16 Greatest Overweight (x) 15 | . 2 15 Average Overweight (x) 1 | . 1 2 Largest Inventory Capacity 20 | . 20 20 Average Capacity 16 | . 15 20 Most Carried 20 | . 20 20 Average Carried 14 | . 12 18 Final Capacity 20 | 8 20 20 Final Carried 20 | 6 20 15 Class Distribution -------------------- 100% | Mutant Dominant Class ---------------- Mutant | -10/Materials Mutant | -10/Subcaves Resources | -11 -10 -10 ----------- Run | Yrd Mat Sub Matter Collected 477 | 200 60 217 Remotely . | . . . Salvage Created 202 | . 181 21 Parts 13 | . 11 2 Haulers Intercepted 1 | . 1 . Recyclers Shooed . | . . . Parts Field Recycled . | . . . Retrieved Matter . | . . . Parts Self-Destructed 7 | . . 7 Prevented . | . . . Parts Restored . | . . . Kills | -11 -10 -10 ------- Run | Yrd Mat Sub Combat Hostiles Destroyed 5 | . 4 1 Guns 1 | . 1 . Cannons 1 | . . 1 AOE 3 | . 3 . Classes Destroyed 4 | . 3 1 Hauler 1 | . 1 . Swarmer 3 | . 3 . Grunt 1 | . 1 . Subdweller 1 | . . 1 Best Kill Streak 3 | . 3 1 Combat Bots Only 3 | . 3 1 Max Kills in Single Turn 2 | . 2 1 Gunslinging . | . . . Exploded 2 | . 2 . Melee . | . . . Uniques/NPCs Destroyed . | . . . Combat | -11 -10 -10 -------- Run | Yrd Mat Sub Hostile Shots Fired 70 | . 12 58 Missed 13 | . 1 12 Hits 57 | . 11 46 Projectile 57 | . 11 46 Critical Strikes 1 | . . 1 Damage Taken 1139 | . 197 942 Core 255 | . 28 227 Absorbed by Shields . | . . . Regen/Repaired (Parts) 9 | . 9 . Core Remaining (%) 100 | 100 . . Volleys Fired 50 | . 15 35 Largest 2 | . 2 2 Hottest 90 | . 90 85 Shots Fired 88 | . 30 58 Gun 77 | . 30 47 Cannon 11 | . . 11 Launcher . | . . . Special . | . . . Kinetic 44 | . . 44 Thermal 28 | . 15 13 Explosive . | . . . Electromagnetic 16 | . 15 1 Robot Hit Streak 23 | . 4 23 Robot Miss Streak 4 | . 4 1 Penetration Max . | . . . Secondary Targets . | . . . Shots Hit Robots 69 | . 13 56 Core Hits 9 | . 5 4 Critical Kills . | . . . Critical Parts Destroyed . | . . . Critical Strikes 2 | . 2 . Burn 2 | . 2 . Melee Attacks . | . . . Impact . | . . . Slashing . | . . . Piercing . | . . . Sneak Attacks . | . . . Combat Hostiles . | . . . Follow-up Attacks . | . . . Damage Inflicted 500 | . 319 181 Guns 281 | . 170 111 Cannons 70 | . . 70 Explosions 149 | . 149 . Melee . | . . . Ramming . | . . . Kinetic 181 | . . 181 Thermal 225 | . 225 . Explosive . | . . . Electromagnetic 94 | . 94 . Impact . | . . . Slashing . | . . . Piercing . | . . . Highest Corruption . | . . . Average Corruption . | . . . Corruption Purged . | . . . Corruption Blocked . | . . . Overload Shots . | . . . Overflow Damage 31 | . 31 . Projectiles . | . . . Explosions 31 | . 31 . Melee . | . . . Knockbacks . | . . . Impact . | . . . Kinetic . | . . . Secondary . | . . . Self-Inflicted Damage 90 | . 90 . Shots 2 | . 2 . Rammed . | . . . Targets Rammed . | . . . Kicked . | . . . Crushed . | . . . Highest Temperature 42 | . 42 . Average Temperature 17 | . 17 . Received Heat Transfer 264 | . 36 228 Siege Activations . | . . . Martial Activations . | . . . Shielding Activations . | . . . Robots Disrupted . | . . . Combat Hostiles . | . . . Robots Corrupted . | . . . Combat Hostiles . | . . . Parts Fried . | . . . Impact Corruptions . | . . . Robots Melted . | . . . Combat Hostiles . | . . . Parts Melted . | . . . Heat Transferred 520 | . 520 . Parts Sabotaged . | . . . Parts Stolen . | . . . Parts Stripped . | . . . Power Chain Reactions 1 | . 1 . Alert | -11 -10 -10 ------- Run | Yrd Mat Sub Maximum Alert Level . | . . . Low Security (%) 100 | . 100 . Level 1 . | . . . Level 2 . | . . . Level 3 . | . . . Level 4 . | . . . Level 5 . | . . . High Security . | . . . Max Security . | . . . Peak Influence 74 | . 74 . Initial . | . . . Average 16 | . 16 . Influence Increases 169 | . 169 . Destroy 0b10 Robot/C 80 | . 80 . Destroy 0b10 Robot/NC 10 | . 10 . Destroy Leader 22 | . 22 . Successful Hack 6 | . 6 . Disable Machine 15 | . 15 . Destroy Structure 21 | . 21 . Partial Spotted 15 | . 15 . Influence Decreases 169 | . 163 6 Entered New Map 4 | . . 4 Time Decay 165 | . 163 2 Squads Dispatched 1 | . 1 . Investigation 1 | . 1 . Extermination . | . . . Reinforcement . | . . . Assault . | . . . Garrison . | . . . Intercept . | . . . Searches Triggered . | . . . Construction Impeded . | . . . Haulers Reinforced . | . . . Active Scanning Responses . | . . . Cargo Convoy Interrupts . | . . . Stealth | -11 -10 -10 --------- Run | Yrd Mat Sub Distress Signals . | . . . Communications Jammed . | . . . Distress Signals . | . . . Times Spotted 12 | . 8 4 Peak Tracking Total 3 | . 3 2 Tactical Retreats . | . . . Traps | -11 -10 -10 ------- Run | Yrd Mat Sub Traps Triggered 1 | . 1 . Indirectly . | . . . Trap Hack Attempts . | . . . Triggered . | . . . Disarmed . | . . . Reprogrammed . | . . . Reused . | . . . Traps Extracted . | . . . Installed . | . . . Triggered . | . . . Machines | -11 -10 -10 ---------- Run | Yrd Mat Sub Machines Disabled 1 | . 1 . Max in Single Turn 1 | . 1 . Machines Repaired . | . . . Machines Dismantled . | . . . Machines Sabotaged . | . . . Overloaded Fab Kills . | . . . Hacking | -11 -10 -10 --------- Run | Yrd Mat Sub Machines Accessed 6 | . 6 . Terminals 4 | . 4 . Fabricators . | . . . Repair Stations 1 | . 1 . Recycling Units 1 | . 1 . Scanalyzers . | . . . Garrison Access . | . . . Total Hacks 17 | . 17 . Successful 6 | . 6 . Failed 11 | . 11 . Catastrophic 1 | . 1 . Database Lockouts . | . . . Manual 10 | . 10 . Terminals 12 | . 12 . Fabricators . | . . . Repair Stations 2 | . 2 . Recycling Units 3 | . 3 . Scanalyzers . | . . . Garrison Access . | . . . Terminal Hacks 2 | . 2 . Robot Analysis 2 | . 2 . Fabricator Hacks . | . . . Repair Station Hacks 2 | . 2 . Scan Component 1 | . 1 . Repair 1 | . 1 . Recycling Unit Hacks 2 | . 2 . Report Inventory 1 | . 1 . Retrieve Components 1 | . 1 . Scanalyzer . | . . . Garrison Access Hacks . | . . . Unauthorized Hacks . | . . . Terminals . | . . . Fabricators . | . . . Repair Stations . | . . . Recycling Units . | . . . Scanalyzers . | . . . Garrison Access . | . . . Data Cores Recovered . | . . . Used . | . . . Hacking Detections 5 | . 5 . Full Trace Events . | . . . Feedback Events . | . . . Feedback Blocked . | . . . Robot Schematics Acquired . | . . . Robots Built . | . . . Authchips . | . . . Time . | . . . Total Robot Build Rating . | . . . Part Schematics Acquired . | . . . Parts Built . | . . . Authchips . | . . . Time . | . . . Total Part Build Rating . | . . . Part Studies Acquired . | . . . Parts Repaired 1 | . 1 . Time 26 | . 26 . Parts Recycled . | . . . Recycled Matter . | . . . Retrieved Matter . | . . . Retrieved Components 9 | . 9 . Parts Scanalyzed . | . . . Part Schematics Acquired . | . . . Parts Damaged . | . . . Bothacking | -11 -10 -10 ------------ Run | Yrd Mat Sub Used RIF Installer . | . . . Robots Hacked . | . . . Non-combat . | . . . Combat . | . . . Robot Hacks Applied . | . . . Relay Couplers Released . | . . . Fabnet Peak Effective % . | . . . Robots Rewired . | . . . Allies Hacked . | . . . Hacks Repelled . | . . . Allies | -11 -10 -10 -------- Run | Yrd Mat Sub Total Allies . | . . . Largest Group . | . . . Highest-Rated Group . | . . . Highest-Rated Ally . | . . . Total Orders . | . . . Ally Attacks . | . . . Total Damage . | . . . Kills . | . . . Allies Corrupted . | . . . Allies Melted . | . . . Intel | -11 -10 -10 ------- Run | Yrd Mat Sub Active Infowar (turns) . | . . . Robot Analysis Total 2 | . 2 . Derelict Logs Recovered . | . . . Drone Launches . | . . . Drone Recoveries . | . . . Exploration | -11 -10 -10 ------------- Run | Yrd Mat Sub Turns Passed 1063 | . 701 362 Spaces Moved 689 | 1 497 191 Core 1 | . . 1 Treads . | . . . Legs 119 | 1 118 . Wheels 569 | . 379 190 Hover . | . . . Flight . | . . . Fastest Speed 115 | 120 115 130 Average Speed 124 | 120 121 133 Slowest Speed 800 | 120 130 800 Overloaded Moves . | . . . Propulsion Burnouts . | . . . Robots Hopped . | . . . Potential Cave-ins . | . . . Cave-ins Triggered . | . . . Exploration Rate (%) 27 | 2 65 14 Regions Visited 2 Branch Regions 1 Pre-discovered Areas . | . . . Known Exits Taken . | . . . Unknown Exits Taken 2 | 1 1 . Scrap Searched . | . . . Spaces Dug . | . . . Terrain Destroyed 19 | . 19 . Melee . | . . . Projectile . | . . . AOE 19 | . 19 . Terrain Rammed . | . . . Walls Destroyed . | . . . Machines Disabled . | . . . Actions | -11 -10 -10 --------- Run | Yrd Mat Sub Total 822 | . 565 257 Wait 38 | . 28 10 Move 687 | . 496 191 Hop . | . . . Pick Up 23 | . 16 7 Fast Attach 2 | . 2 . Attach 5 | . . 5 Detach . | . . . Swap 6 | . 4 2 Drop 11 | . 4 7 Fire 50 | . 15 35 Melee . | . . . Ram . | . . . Kick . | . . . Crush . | . . . Escape Stasis . | . . . Rewire . | . . . Trap . | . . . Miscellaneous . | . . . Route ------- -11/Scrapyard -10/Materials (discovered 2 exits: [*Mat] / [*Sub]) -10/Subcaves (discovered 1 exit: [Scr]) History --------- Turn | Location | Event 1 | -11/Scrapyard | Discovered new exit (range 0) 1 | -11/Scrapyard | Entered Materials 2 | -10/Materials | Met a group of wandering Federalists 318 | -10/Materials | Build established: Mutant 404 | -10/Materials | Repaired Heat Sink 526 | -10/Materials | Discovered new exit (range 11) 618 | -10/Materials | Discovered new exit (range 9) 702 | -10/Materials | Entered Subcaves 703 | -10/Subcaves | Continued accompanying wandering Federalists (5) 703 | -10/Subcaves | Approached by a straggling Scientist 704 | -10/Subcaves | Ambushed by Subdwellers from Twisted Machinery 860 | -10/Subcaves | Shifting Twisted Machinery released Mak. Hacking Suite 995 | -10/Subcaves | Core integrity fell below 50% 1031 | -10/Subcaves | Lost 5 parts (1p1n3w) 1043 | -10/Subcaves | Core integrity fell below 20% 1064 | -10/Subcaves | Destroyed by J5-7G1(R) with Subdweller Laser Last Messages --------------- 00934_ Dropped Heat Sink. 00934_ Acquired Imp. Heat Sink. 00941_ 8E-AJ0(c) triggered Shrapnel Trap. 00941_ An expanding cloud of shrapnel blasts out in all directions. 00944_ Subatomizers dissect the Salvaging Laser. 00954_ Subatomizers dissect the Aluminum Leg. 8E-AJ0(c): "I think it's somewhere northeast of here" 00963_ Lgt. Ion Engine destroyed. 00964_ Med. Laser destroyed. 00972_ Acquired 7 matter. 00983_ CN-SVH(R) destroyed. 00988_ Lgt. Treads destroyed. 00996_ Lgt. Cannon destroyed. 01000_ EM Pulse Gun destroyed. 8E-AJ0(c): "I think it's somewhere northeast of here" 01032_ Particle Gun destroyed. 01047_ J5-7G1(R) affixes Scrap Shield Fragment to Scrap Shield. 01050_ Com. Wheel destroyed. 01056_ Lgt. Treads destroyed. 01060_ Lgt. Assault Rifle destroyed. Map ----- +----------------------------------------------------+ | ""### !& ! = #???????????????????????????? | | "###?### && & ! #???????????????????????????? | | #?????##&## = [ ##???????????????????????????? | | ##??????###### = ##????????????????????????????? | | #???????????### #?????????????????????????????? | | ##?????####????####?????????????????????????????? | | ##????? #?????????????????????????????????????? | | ?????? #?????????????????????????????????????? | | ?????? #??????????????????????????????????????? | | ?????# #???????????????????????????????????????? | | ???## #???????????????????????????????????????? | | ?## #????????????????????????????????????????? | | ## #????????????????????????????????????????? | | #????????????????????????????????????????? | | #????????????????????????????????????????? | | ####?????????????????????????????????????? | | ### ????????????????????????????????? | | ???????????????????????????????? | | ????????????????????????????????? | | ## ????????????????????????????????? | | #??## ?????????????????????????????????? | | ###?# ?????????????????????????????????? | | ## #???????????????????????????????????? | | #?????????????????????#??????????????? | | #??????????######### ###????????????? | | # #####??????## @ ##%%[" ""#????????????? | | ## #### #??????# R ""% " %=#???????????? | | ?# ##??# # ###### ## *#"" ""%!#???????????? | | ?# ##???# """ ## #######"##"[ #??????????? | | ## ##????# ! #?????" #?" #??????????? | | # ########" ; ##?????? ??????????????? | | #### ### = [ %;##???????## ?????????????? | | ### = % % #??????????# ????????????? | | ## #### #??????????##???????????? | | # # ### ;##???????????????????????? | | # ^##?????????????????????????? | | ##??????????????????????????? | | ### ### #??????????????????????????? | | #?#####?# ?????????????????????????? | | ##???????## ## # #???????????????????????? | | ##?????????### ##?##?#???????????????????????? | | ####????????????####?????????????????????????????? | | ?????????????????????????????????????????????????? | | ?????????????????????????????????????????????????? | | ?????????????????????????????????????????????????? | | ?????????????????????????????????????????????????? | | ?????????????????????????????????????????????????? | | ?????????????????????????????????????????????????? | | ?????????????????????????????????????????????????? | | ?????????????????????????????????????????????????? | +----------------------------------------------------+ Best States ------------- Heat Dissipation 39 Energy Generation 10 Energy Capacity 250 Matter Stores 300 Matter Capacity 300 Sight Range 16 Terrain Scan Density 10 Evasion (%) 55 Recoil Reduction 1 Item Schematics ----------------- None Robot Schematics ------------------ None Fabricated ------------ Nothing Repaired ---------- Heat Sink | 70% | -10/Materials Studied --------- None Alien Tech Used ----------------- None Achievements -------------- None Challenges ------------ None Game ------ Seed SuperdensePropulsionJets Manual? 0 Play Time 00:17:11 Cumulative 89.1 hours Start 2026.07.04 @ 22:41:21 End 2026.07.04 @ 22:56:55 Sessions 1 Manual Loads 0 Difficulty Rogue Special Mode None Game No. 98 Rogue 98 Adventurer 0 Explorer 0 Win Type - Total 2 Types 2/0/0/0/0/0/0/0/0/0 Lore% 39 Gallery% 38 Achievement% 35 Wizard Run 0 Options --------- Layout 0 ASCII 0 Keyboard 1 Movement Arrows Keybinds 0 Fullscreen 0 Font 20/Smallcaps Map View 76x50 Zoom Use 0% Tactical HUD 1 Map Filters NONE Filters NONE Steam 1 RUN: 651717a2-b5eb-4d2a-af8d-cc3b1356a058